{"text_format":"1","workbook":"xlsx","n_sheets":13,"sheets":["1. Forside","2. Samlet prisloft","3. Driftsomkostninger","4. Historiske investeringer","5. Gennemførte investeringer","6. Korrektion investeringer","7. Planlagte investeringer","8. 1-1 omkostninger","9. Miljø- og servicemål","10. Klimatilpasning","11. Nettofinansielle poster","12. Over- eller underdækning","13. Kontrol med indtægtsrammen"],"not_rendered":{"charts":0,"images":0,"macros":1,"external_links":0,"defined_names":0,"comments":0,"pivot_tables":0},"unopened":[],"bounds":{"document_bytes":16777216,"sheet_cells":100000,"rows_first":2000,"rows_last":500,"rows_between":2000,"halvings":0,"cell_chars":16384,"cell_head_chars":4096},"cells_cut":0,"cells_raw":0,"read":"whole","date_system":"1900"}

{"sheet":"1. Forside","index":0,"n_rows":27,"n_cols":4,"rows_kept":27,"cut":false,"hidden":false,"merged":[[21,3,21,5],[20,3,20,5],[19,3,19,5],[18,3,18,5],[7,3,7,5],[12,3,12,5],[15,3,15,5],[16,3,16,5],[17,3,17,5],[26,3,26,5],[25,3,25,5],[24,3,24,5],[23,3,23,5],[22,3,22,5]]}
["Hedensted Spildevand"]
[]
[]
[]
[]
[]
[]
[null,null,null,"Bilag A"]
[]
[]
[]
[]
[null,null,null,"Indholdsfortegnelse"]
[]
[]
[null,null,"Fane nr. 2","Samlet prisloft "]
[null,null,"Fane nr. 3","Driftsomkostninger"]
[null,null,"Fane nr. 4","Historiske investeringer "]
[null,null,"Fane nr. 5","Gennemførte investeringer"]
[null,null,"Fane nr. 6","Korrektion investeringer"]
[null,null,"Fane nr. 7","Planlagte investeringer"]
[null,null,"Fane nr. 8","1:1 omkostninger"]
[null,null,"Fane nr. 9","Miljø- og servicemål"]
[null,null,"Fane nr. 10","Klimatilpasning"]
[null,null,"Fane nr. 11","Nettofinansielle poster"]
[null,null,"Fane nr. 12","Over- eller underdækning"]
[null,null,"Fane nr. 13","Kontrol med indtægtsrammen og oversigt over ekstraordinære effektiviseringsgevinster"]

{"sheet":"2. Samlet prisloft","index":1,"n_rows":38,"n_cols":6,"rows_kept":38,"cut":false,"hidden":false,"merged":[[3,1,3,5]]}
[{"$f":"'1. Forside'!A1","v":"Hedensted Spildevand"}]
[]
[]
[null,"Fane 2. Samlet prisloft for 2015"]
[]
[null,"Driftsomkostninger"]
[null,"Driftsomkostninger i prisloftet for 2014",{"$f":"'3. Driftsomkostninger'!C21","v":28689473.704999998},"kr."]
[null,"Bortfald af væsentlige omkostninger",{"$f":"-'3. Driftsomkostninger'!C17","v":0},"kr."]
[null,"Korrektion for prisudviklingen 2014-2015",{"$f":"'3. Driftsomkostninger'!C23","v":22951.578964},"kr."]
[null,"Forhøjelse til effektivt niveau iht. benchmarkingen",{"$f":"'3. Driftsomkostninger'!C29","v":0},"kr."]
[null,"Korrektion for generelt effektiviseringskrav",{"$f":"-'3. Driftsomkostninger'!C35","v":-126233.68430199999},"kr."]
[null,"Korrektion for individuelt effektiviseringskrav",{"$f":"-'3. Driftsomkostninger'!C44","v":0},"kr."]
[null,"Driftsomkostninger i alt",{"$f":"SUM(C7:C12)","v":28586191.599661998},"kr.",{"$f":"C13","v":28586191.599661998}," kr."]
[null,"Investeringer"]
[null,"Tillæg for historiske investeringer",{"$f":"'4. Historiske investeringer'!C9","v":48955335.553789847},"kr."]
[null,"Tillæg for gennemførte investeringer i 2011-2013",{"$f":"'5. Gennemførte investeringer'!F46","v":8398858.8166666664},"kr."]
[null,"Korrektion af tillæg for planlagte investeringer vedrørende 2013  ",{"$f":"'6. Korrektion investeringer'!C10","v":1566958.9000000022},"kr."]
[null,"Tillæg for planlagte investeringer i 2014 og 2015",{"$f":"'7. Planlagte investeringer'!F44","v":1181520},"kr."]
[null,"Investeringstillæg i alt",{"$f":"SUM(C15:C18)","v":60102673.270456523},"kr.",{"$f":"C19","v":60102673.270456523}," kr."]
[null,"Øvrige omkostninger mv."]
[null,"Tillæg for 1:1 omkostninger i 2015",{"$f":"'8. 1-1 omkostninger'!C11","v":1419700},"kr."]
[null,"Tillæg vedr. revisorerklæringer og DANVA/FVD-kontingent",{"$f":"'8. 1-1 omkostninger'!C19","v":150000},"kr."]
[null,"Korrektion ift. faktiske 1:1 omkostninger i 2013",{"$f":"'8. 1-1 omkostninger'!C25","v":116465},"kr."]
[null,"Tillæg for driftsomkostninger til miljø- og servicemål i 2015",{"$f":"'9. Miljø- og servicemål'!C9","v":2115000},"kr."]
[null,"Korrektion ift. faktiske driftsomkostninger til miljø- og servicemål i 2013",{"$f":"'9. Miljø- og servicemål'!C16","v":-146649},"kr."]
[null,"Tillæg for driftsomkostninger til medfinansiering af klimatilpasningsprojekter i 2015",{"$f":"'10. Klimatilpasning'!C9","v":0},"kr."]
[null,"Korrektion ift. faktiske omkostninger til medfinansiering af klimatilpasningsprojekter i 2013",{"$f":"'10. Klimatilpasning'!C16","v":0},"kr."]
[null,"Tillæg/fradrag for nettofinansielle poster i 2015",{"$f":"'11. Nettofinansielle poster'!C9","v":1310000},"kr."]
[null,"Korrektion ift. faktiske nettofinansielle poster i 2013",{"$f":"'11. Nettofinansielle poster'!C16","v":181722},"kr."]
[null,"Øvrige omkostninger mv. i alt",{"$f":"SUM(C21:C29)","v":5146238},"kr.",{"$f":"C30","v":5146238}," kr."]
[null,"Historisk over- eller underdækning"]
[null,"Tillæg/fradrag for over- eller underdækning til og med 2010",{"$f":"'12. Over- eller underdækning'!C11","v":-4898935.2486772491},"kr.",{"$f":"C32","v":-4898935.2486772491}," kr."]
[null,"Korrektion i forhold til tidligere indtægtsramme "]
[null,"Korrektion for overholdelse af indtægtsramme i prisloft 2013",{"$f":"'13. Kontrol med indtægtsrammen'!E27","v":-1708435.3230032399},"kr.",{"$f":"C34","v":-1708435.3230032399}," kr."]
[null,"Samlet prisloft"]
[null,"Indtægtsramme i 2015 ",null,null,{"$f":"SUM(E13:E34)","v":87227732.298438042}," kr."]
[null,"Debiteret vandmængde i 2013",null,null,1782974," m3"]
[null,"Prisloft 2015",null,null,{"$f":"E36/E37","v":48.922604759485019}," kr./m3"]

{"sheet":"3. Driftsomkostninger","index":2,"n_rows":44,"n_cols":4,"rows_kept":44,"cut":false,"hidden":false,"merged":[[3,1,3,3]]}
[{"$f":"'1. Forside'!A1","v":"Hedensted Spildevand"}]
[]
[]
[null,"Fane 3. Driftsomkostninger "]
[]
[null,"Driftsomkostningerne i prisloftet for 2014"]
[null,"Korrigerede driftsomkostninger i prisloftet for 2013 (DOiPL 2013)",31702567,"kr."]
[null,"Prisfremskrivning 1,5 pct.",{"$f":"0.015*SUM(C7:C7)","v":475538.505},"kr."]
[null,"Generelt effektiviseringskrav (0 pct.)",0,"kr."]
[null,"Individuelt effektiviseringskrav ",-599414,"kr."]
[null,"Bortfald af midlertidigt tillæg  iht. § 8, stk. 5 (inkl. prisfremskrivning)",{"$f":"-1.015*2846520","v":-2889217.8},"kr."]
[null,"Driftsomkostningerne i prisloftet for 2014 (DOiPL 2014)\n(korrigeret for bortfald af midlertidigt tillæg)",{"$f":"SUM(C7:C11)","v":28689473.704999998},"kr."]
[]
[]
[null,"Korrektion for forventet bortfald af væsentlige omkostninger"]
[null,"Selskabets indberettede bortfald af væsentlige omkostninger inden 2015",0,"kr."]
[null,"Korrektion for forventet bortfald ",{"$f":"SUM(C16:C16)","v":0},"kr."]
[]
[]
[null,"Korrektion for prisudviklingen fra 2014-2015"]
[null,"Driftsomkostningerne i prisloftet for 2014",{"$f":"C12-C17","v":28689473.704999998},"kr."]
[null,"Prisudvikling 2014 - 2015 ",0.08,"pct."]
[null,"Korrektion for prisudvikling",{"$f":"C21*(C22/100)","v":22951.578964},"kr."]
[]
[]
[null,"Eventuel forhøjelse til effektivt niveau iht. benchmarkingen"]
[null,"Selskabets effektive driftsomkostninger iht. benchmarkingen",24443433,"kr."]
[null,"Selskabets pristalskorrigerede driftsomkostninger i 2015-niveau",{"$f":"C21+C23","v":28712425.283963997},"kr."]
[null,"Eventuel forhøjelse til effektivt niveau",{"$f":"IF(C28>C27,0,C27-C28)","v":0},"kr."]
[]
[]
[null,"Korrektion for generelt effektiviseringskrav"]
[null,"Driftsomkostningerne i prisloftet for 2014",{"$f":"C21","v":28689473.704999998},"kr. "]
[null,"Generelt effektiviseringskrav ",0.44,"pct."]
[null,"Endeligt generelt effektiviseringskrav",{"$f":"C33*(C34/100)","v":126233.68430199999},"kr. "]
[]
[]
[null,"Korrektion for individuelt effektiviseringskrav"]
[null,"Rå effektiviseringspotentiale",4372276,"kr."]
[null,"Effektiviseringspotentiale efter eventuel korrektion for særlige forhold",4246042,"kr."]
[null,"Effektiviseringspotentiale efter forsigtighedshensyn",390177,"kr."]
[null,"Effektiviseringspotentiale efter eventuel korrektion for sammensætning af signifikante costdrivere",390177,"kr. "]
[null,"Umiddelbart effektiviseringskrav",{"$f":"C42/4","v":97544.25},"kr."]
[null,"Endeligt individuelt effektiviseringskrav",{"$f":"IF(C43>0.05*C21,0.05*C21,IF(C43<0.01*C21,0,C43))","v":0},"kr. "]

{"sheet":"4. Historiske investeringer","index":3,"n_rows":9,"n_cols":4,"rows_kept":9,"cut":false,"hidden":false,"merged":[[3,1,3,2]]}
[{"$f":"'3. Driftsomkostninger'!A1","v":"Hedensted Spildevand"}]
[]
[]
[null,"Fane 4. Historiske investeringer "]
[]
[null,"Tillæg for historiske investeringer "]
[null,"Værdi af selskabets materielle anlægsaktiver pr. 1. januar 2010",2255862687.0341301,"kr."]
[null,"Den årlige standardafskrivning på de materielle anlægsaktiver iht. POLKA",48955335.553789847,"kr."]
[null,"Tillæg i alt i 2015",{"$f":"C8","v":48955335.553789847},"kr."]

{"sheet":"5. Gennemførte investeringer","index":4,"n_rows":46,"n_cols":7,"rows_kept":46,"cut":false,"hidden":false,"merged":[[3,1,3,5],[6,5,6,6]]}
[{"$f":"'4. Historiske investeringer'!A1","v":"Hedensted Spildevand"}]
[]
[]
[null,"Fane 5. Gennemførte investeringer i 2010 - 2013 "]
[]
[null,"Tillæg for gennemførte investeringer i 2013"]
[null," Beskrivelse af investeringen   ","Årstal ","Std. levetid (år)   "," Anskaffelses-pris (kr.)","Afskrivning "]
[null,"Beluftningstanke, SRO",2013,10,1259720,{"$f":"E8/D8","v":125972},"kr."]
[null,"Pumpeinstallation Miljøklasse A (100-300 l/s) - SRO",2013,10,675791,{"$f":"E9/D9","v":67579.100000000006},"kr."]
[null,"Andre bygninger (tekniske installationer, målere mv.)",2013,75,194997,2599.96,"kr."]
[null,"Beluftningstanke, Mek/EL",2013,20,266554,13327.7,"kr."]
[null,"Brønde",2013,75,460380,6138.4,"kr."]
[null,"Efterklaringstanke, Mek/El",2013,20,17030167,851508.35,"kr."]
[null,"Efterklaringstanke, SRO",2013,10,2319283,231928.3,"kr."]
[null,"Indløb med riste, Mek/EL",2013,20,4556562,227828.1,"kr."]
[null,"Indløb med riste, SRO",2013,10,198796,19879.599999999999,"kr."]
[null,"Pumpestationer m. overbygning (< 20 m2), SRO",2013,10,71856,7185.6,"kr."]
[null,"Installationer \"mekaniske riste og SRO\" Miljøklasse A. (7-20 m2) - Mek/EL",2013,20,780316,39015.800000000003,"kr."]
[null,"Installationer \"mekaniske riste og SRO\" Miljøklasse A. (7-20 m2) - SRO",2013,10,520210,52021,"kr."]
[null,"Jordbassin Klasse A",2013,50,1021896,20437.919999999998,"kr."]
[null,"Jordbassin Klasse B",2013,50,932430,18648.599999999999,"kr."]
[null,"Ledningsnet > Ø 1600 mm (rørbassiner og transportledninger)",2013,75,548305,7310.7333333333336,"kr."]
[null,"Ledningsnet = Ø 200 mm",2013,75,8871332,118284.42666666667,"kr."]
[null,"Pumpestationer i brønde (< 6,25 m2), Konstruktioner",2013,50,1571135,31422.7,"kr."]
[null,"Pumpestationer i brønde (< 6,25 m2), Mek/EL",2013,20,1161311,58065.55,"kr."]
[null,"Pumpestationer i brønde (< 6,25 m2), SRO",2013,10,135456,13545.6,"kr."]
[null,"Pumpestationer i underjordiske bygværker (",2013,20,386647,19332.349999999999,"kr."]
[null,"Pumpestationer m. overbygning (< 20 m2), Mek/EL",2013,20,1599992,79999.600000000006,"kr."]
[null,"Slutafvanding, slam - højteknologisk (centrifuger), Mek/El",2013,20,1178686,58934.3,"kr."]
[null,"Slutafvanding, slam - højteknologisk (centrifuger), SRO",2013,10,100314,10031.4,"kr."]
[null,"Slutdisponering, slam - lavteknologisk (slammineralisering), Konstruktioner",2013,60,403215,6720.25,"kr."]
[null,"Slutdisponering, slam - lavteknologisk (slammineralisering), Mek/EL",2013,20,70849,3542.45,"kr."]
[null,"Strømpeforing = Ø 200 mm",2013,50,243992,4879.84,"kr."]
[null,"Strømpeforing Ø 1000 mm < Ledningsnet = Ø 1200 mm",2013,50,514299,10285.98,"kr."]
[null,"Strømpeforing Ø 200 mm < Ledningsnet = Ø 500 mm",2013,50,157802,3156.04,"kr."]
[null,"Strømpeforing Ø 500 mm < Ledningsnet = Ø 800 mm",2013,50,554633,11092.66,"kr."]
[null,"Tryksatte minipumpestationer (husstandssystemer)",2013,30,1593736,53124.533333333333,"kr."]
[null,"Ø 200 mm < Ledningsnet = Ø 500 mm",2013,75,521116,6948.2133333333331,"kr."]
[null,"Ø 500 mm < Ledningsnet = Ø 800 mm",2013,75,112147,1495.2933333333333,"kr."]
[null,"Gulvvasker",2013,10,137436,13743.6,"kr."]
[null,"Sakslift",2013,10,39000,3900,"kr."]
[null,"Lastbil kran",2013,7,119000,17000,"kr."]
[null,"Miniged",2013,10,100000,10000,"kr."]
[null,"Tillæg for 2013 ",null,null,null,{"$f":"SUM(F8:F43)","v":2226885.9500000011},"kr."]
[null,"Tillæg for 2010 - 2012",null,null,null,6171972.8666666653,"kr."]
[null,"Samlet tillæg for gennemførte investeringer",null,null,null,{"$f":"F44+F45","v":8398858.8166666664},"kr."]

{"sheet":"6. Korrektion investeringer","index":5,"n_rows":10,"n_cols":4,"rows_kept":10,"cut":false,"hidden":false,"merged":[[3,1,3,3]]}
[{"$f":"'5. Gennemførte investeringer'!A1","v":"Hedensted Spildevand"}]
[]
[]
[null,"Fane 6. Korrektion af tillæg for planlagte investeringer"]
[]
[null,"Korrektion af tillæg for planlagte investeringer vedr. 2013"]
[null,"Tillæg for planlagte investeringer i 2013 i prisloft 2013",1871333,"kr."]
[null,"Tillæg for planlagte investeringer i 2013 i prisloft 2014",1015480,"kr."]
[null,"Selskabets faktiske afskrivninger på gennemførte investeringer i 2013",{"$f":"'5. Gennemførte investeringer'!F44","v":2226885.9500000011},"kr."]
[null,"Korrektion af tillæg for planlagte investeringer vedr. 2013",{"$f":"C9-C7+C9-C8","v":1566958.9000000022},"kr."]

{"sheet":"7. Planlagte investeringer","index":6,"n_rows":44,"n_cols":7,"rows_kept":44,"cut":false,"hidden":false,"merged":[[6,5,6,6],[3,1,3,6]]}
[{"$f":"'6. Korrektion investeringer'!A1","v":"Hedensted Spildevand"}]
[]
[]
[null,"Fane 7. Planlagte investeringer "]
[]
[null,"Tillæg for planlagte investeringer i 2014 og 2015"]
[null,"Beskrivelse af investeringen   ","Årstal ","Std. levetid (år)   ","Anskaffelses-pris (kr.)   ","Afskrivning"]
[null,"Ledningsnet = Ø 200 mm",2014,75,37500,{"$f":"E8/D8","v":500},"kr."]
[null,"Ledningsnet = Ø 200 mm",2014,75,687500,{"$f":"E9/D9","v":9166.6666666666661},"kr."]
[null,"Brønde",2014,75,240000,{"$f":"E10/D10","v":3200},"kr."]
[null,"Stik",2014,75,90000,1200,"kr."]
[null,"Ledningsnet = Ø 200 mm",2014,75,6000000,80000,"kr."]
[null,"Pumpestationer m. overbygning (< 20 m2), Konstruktioner",2014,50,3700000,74000,"kr."]
[null,"Pumpestationer m. overbygning (< 20 m2), Mek/EL",2014,20,740000,37000,"kr."]
[null,"Pumpestationer m. overbygning (< 20 m2), SRO",2014,10,185000,18500,"kr."]
[null,"Ledningsnet = Ø 200 mm",2014,75,52500,700,"kr."]
[null,"Brønde",2014,75,1125000,15000,"kr."]
[null,"Stik",2014,75,850000,11333.333333333334,"kr."]
[null,"Tryksatte minipumpestationer (husstandssystemer)",2014,30,3600000,120000,"kr."]
[null,"Ledningsnet = Ø 200 mm",2014,75,3900000,52000,"kr."]
[null,"Mindre renseanlæg < 5.000 PE uden mulighed for opdeling",2014,40,300000,7500,"kr."]
[null,"Ø 200 mm < Ledningsnet = Ø 500 mm",2014,75,7400000,98666.666666666672,"kr."]
[null,"Jordbassin Klasse B",2014,50,2400000,48000,"kr."]
[null,"Ledningsnet = Ø 200 mm",2014,75,1625000,21666.666666666668,"kr."]
[null,"Brønde",2014,75,225000,3000,"kr."]
[null,"Stik",2014,75,170000,2266.6666666666665,"kr."]
[null,"Ledningsnet = Ø 200 mm",2015,75,6875000,91666.666666666672,"kr."]
[null,"Brønde",2015,75,2400000,32000,"kr."]
[null,"Stik",2015,75,900000,12000,"kr."]
[null,"Ledningsnet = Ø 200 mm",2015,75,2000000,26666.666666666668,"kr."]
[null,"Brønde",2015,75,1125000,15000,"kr."]
[null,"Stik",2015,75,850000,11333.333333333334,"kr."]
[null,"Stik",2015,75,204000,2720,"kr."]
[null,"Ledningsnet = Ø 200 mm",2015,75,6000000,80000,"kr."]
[null,"Tryksatte minipumpestationer (husstandssystemer)",2015,30,3600000,120000,"kr."]
[null,"Ledningsnet = Ø 200 mm",2015,75,3900000,52000,"kr."]
[null,"Mindre renseanlæg < 5.000 PE uden mulighed for opdeling",2015,40,300000,7500,"kr."]
[null,"Ledningsnet = Ø 200 mm",2015,75,1625000,21666.666666666668,"kr."]
[null,"Brønde",2015,75,225000,3000,"kr."]
[null,"Stik",2015,75,170000,2266.6666666666665,"kr."]
[null,"Oversvømmelseskort",2015,5,500000,100000,"kr."]
[null,"Tillæg for 2014",null,null,null,{"$f":"SUMIF(C8:C41,\"2014\",F8:F41)","v":603699.99999999988},"kr."]
[null,"Tillæg for 2015",null,null,null,{"$f":"SUMIF(C8:C41,\"2015\",F8:F41)","v":577820},"kr."]
[null,"Tillæg i alt",null,null,null,{"$f":"F42+F43","v":1181520},"kr."]

{"sheet":"8. 1-1 omkostninger","index":7,"n_rows":25,"n_cols":4,"rows_kept":25,"cut":false,"hidden":false,"merged":[[3,1,3,3],[15,1,15,3],[21,1,21,3]]}
[{"$f":"'7. Planlagte investeringer'!A1","v":"Hedensted Spildevand"}]
[]
[]
[null,"Fane 8. 1:1 omkostninger"]
[]
[null,"Tillæg for budgetterede 1:1 omkostninger i 2015"]
[null,"Betaling til Forsyningssekretariatet",33000,"kr."]
[null,"Spildevandsafgift",1125000,"kr."]
[null,"Køb af varer og tjenesteydelser hos et andet prisloftreguleret vandselskab",121700,"kr."]
[null,"Ejendomsskatter",140000,"kr."]
[null,"Tillæg i alt ",{"$f":"SUM(C7:C10)","v":1419700},"kr."]
[]
[]
[]
[]
[null,"Tillæg for budgetterede nødvendige udgifter til revisorerklæringer samt ordinært medlemskab af DANVA og FVD i 2015"]
[null,"Betaling for ordinært medlemskab af DANVA/FVD",115000,"kr."]
[null,"Betaling for revisorerklæringer",35000,"kr."]
[null,"Tillæg i alt ",{"$f":"SUM(C17:C18)","v":150000},"kr."]
[]
[]
[null,"Korrektion af tillæg for faktiske 1:1 omkostninger (inkl. revisorerklæringer og ordinært medlemskab af DANVA/FVD) i 2013"]
[null,"Selskabets faktiske 1:1 omkostninger mv. i 2013, jf. reguleringsregnskabet",1274465,"kr."]
[null,"Tillæg for budgetterede 1:1 omkostninger mv. i prisloft 2013",1158000,"kr."]
[null,"Korrektion af tillæg for budgetterede 1:1 omkostninger mv. i 2013",{"$f":"C23-C24","v":116465},"kr."]

{"sheet":"9. Miljø- og servicemål","index":8,"n_rows":16,"n_cols":4,"rows_kept":16,"cut":false,"hidden":false,"merged":[[3,1,3,3]]}
[{"$f":"'8. 1-1 omkostninger'!A1","v":"Hedensted Spildevand"}]
[]
[]
[null,"Fane 9. Driftsomkostninger til miljø- og servicemål "]
[]
[null,"Tillæg for budgetterede driftsomkostninger til miljø- og servicemål i 2015"]
[null,"Rottebekæmpelse",1450000,"kr."]
[null,"Svovlbrintebekæmpelse",665000,"kr."]
[null,"Tillæg i alt",{"$f":"SUM(C7:C8)","v":2115000},"kr."]
[]
[]
[]
[null,"Korrektion af tillæg for faktiske driftsomkostninger til miljø- og servicemål i 2013"]
[null,"Selskabets faktiske driftsomkostninger til miljø- og servicemål i 2013, jf. reguleringsregnskabet",595852,"kr."]
[null,"Tillæg for budgetterede driftsomkostninger til miljø- og servicemål i prisloft 2013",742501,"kr."]
[null,"Korrektion af tillæg for budgetterede driftsomkostninger til miljø- og servicemål i 2013",{"$f":"C14-C15","v":-146649},"kr."]

{"sheet":"10. Klimatilpasning","index":9,"n_rows":16,"n_cols":4,"rows_kept":16,"cut":false,"hidden":false,"merged":[[3,1,3,3],[12,1,12,3],[6,1,6,3]]}
[{"$f":"'9. Miljø- og servicemål'!A1","v":"Hedensted Spildevand"}]
[]
[]
[null,"Fane 10. Medfinansiering af klimatilpasningsprojekter"]
[]
[]
[null,"Tillæg for budgetterede omkostninger til medfinansiering af klimatilpasningsprojekter i 2015"]
[null,null,0,"kr."]
[null,"Tillæg i alt",{"$f":" SUM(C8:C8)","v":0},"kr."]
[]
[]
[]
[null,"Korrektion af tillæg for faktiske omkostninger til medfinansiering af klimatilpasningsprojekter i 2013"]
[null,"Selskabets faktiske driftsomkostninger til klimatilpasningsprojekter i 2013, jf. reguleringsregnskabet",0,"kr."]
[null,"Tillæg for budgetterede driftsomkostninger til klimatilpasningsprojekter i prisloft 2013",0,"kr."]
[null,"Korrektion af tillæg for budgetterede omkostninger til klimatilpasningsprojekter i 2013",{"$f":"C14-C15","v":0},"kr."]

{"sheet":"11. Nettofinansielle poster","index":10,"n_rows":16,"n_cols":4,"rows_kept":16,"cut":false,"hidden":false,"merged":[[3,1,3,3]]}
[{"$f":"'10. Klimatilpasning'!A1","v":"Hedensted Spildevand"}]
[]
[]
[null,"Fane 11. Nettofinansielle poster"]
[]
[null,"Tillæg for budgetterede nettofinansielle poster i 2015"]
[null,"Budgetterede renteudgifter og gebyrer i 2015",2030000,"kr."]
[null,"Budgetterede renteindtægter i 2015",720000,"kr."]
[null,"Tillæg/fradrag i alt",{"$f":"C7-C8","v":1310000},"kr."]
[]
[]
[]
[null,"Korrektion af tillæg for faktiske nettofinansielle poster i 2013"]
[null,"Selskabets faktiske nettofinansielle poster i 2013, jf. reguleringsregnskabet",981722,"kr."]
[null,"Tillæg for budgetterede nettofinansielle poster i prisloft 2013",800000,"kr."]
[null,"Korrektion af tillæg for budgetterede nettofinansielle poster i 2013",{"$f":"C14-C15","v":181722},"kr."]

{"sheet":"12. Over- eller underdækning","index":11,"n_rows":11,"n_cols":4,"rows_kept":11,"cut":false,"hidden":false,"merged":[[3,1,3,3]]}
[{"$f":"'11. Nettofinansielle poster'!A1","v":"Hedensted Spildevand"}]
[]
[]
[null,"Fane 12. Over- eller underdækning til og med 2010"]
[]
[null,"Tillæg/fradrag for over- eller underdækning til og med 2010"]
[null,"Opgjort over- eller underdækning per 31. december 2010",-48174728,"kr."]
[null,"Heraf beløb indregnet i prislofterne for 2011 - 2014",-18781116.507936507,"kr."]
[null,"Endnu ikke indregnet over- eller underdækning",{"$f":"C7-C8","v":-29393611.492063493},"kr."]
[null,"Resterende indregningsperiode (fastsat i prisloftet for 2012)",6,"år"]
[null,"Tillæg/fradrag i alt",{"$f":"IF(C7=0,0,C9/C10)","v":-4898935.2486772491},"kr."]

{"sheet":"13. Kontrol med indtægtsrammen","index":12,"n_rows":38,"n_cols":12,"rows_kept":38,"cut":false,"hidden":false,"merged":[[3,1,3,5],[30,1,30,4],[5,1,5,5]]}
[{"$f":"'12. Over- eller underdækning'!A1","v":"Hedensted Spildevand"}]
[]
[]
[null,"Fane 13. Korrektion for overholdelse af indtægtsrammen i prisloftet for 2013"]
[]
[null,"Samlet opgørelse vedrørende overholdelse af indtægtsrammen i prisloftet for 2013"]
[null,"Indtægtsramme i prisloftet for 2013",null,null,83035884.094460994,"kr."]
[null,"Ikke anvendt likviditet vedrørende investeringer i 2013"]
[null,"Tillæg for historiske investeringer ",49296498.417464234,"kr."]
[null,"Tillæg for gennemførte investeringer i 2011",2484648,"kr."]
[null,"Korrektion af tillæg for planlagte investeringer i 2011",-460742,"kr."]
[null,"Tillæg for planlagte investeringer i 2012 og 2013",3386315,"kr."]
[null,"Indtægter fra tilslutningsbidrag",3689726,"kr."]
[null,"Indtægter fra salg af anlægsaktiver",0,"kr."]
[null,"Erstatninger vedr. anlægsaktiver mv.",0,"kr."]
[null,"Ekstraordinær effektiviseringsgevinst anvendt til investeringer",0,"kr."]
[null,"Udgifter til investeringer",-30510020,"kr."]
[null,"Ikke anvendt likviditet vedr. investeringer i alt",{"$f":"SUM(C9:C17)","v":27886425.417464234},"kr.",{"$f":"IF(C18<0,0,-C18)","v":-27886425.417464234},"kr."]
[null,"Ekstraordinære effektiviseringsgevinster anvendt til takstnedsættelse"]
[null,"Ekstraordinær effektiviseringsgevinst anvendt til takstnedsættelse",0,"kr.",{"$f":"-C20","v":0},"kr."]
[null,"Korrektion af ikke opkrævet tillæg fra 2011 i prisloft 2013"]
[null,"Korrektion af ikke opkrævet tillæg fra 2011 i prisloft 2013",0,"kr.",{"$f":"-C22","v":0},"kr."]
[null,"Indtægter fra primære aktiviteter mv."]
[null,"Indtægter fra kubikmetertakster, faste takster, særbidrag, målergebyrer samt andre takster og gebyrer",56857894,"kr."]
[null,"Andre indtægter i prisloftåret, som selskabet har opnået i forbindelse med eller som følge af selskabets primære aktiviteter",0,"kr."]
[null,"Indtægter fra primære aktiviteter mv. i alt",{"$f":"SUM(C24:C25)","v":56857894},"kr.",{"$f":"-C26","v":-56857894},"kr."]
[null,"Tillæg/fradrag i prisloftet for 2015 i alt",null,null,{"$f":"E7+E18+E20+E22+E26","v":-1708435.3230032399},"kr."]
[]
[]
[]
[null,"Oversigt over ekstraordinære effektiviseringsgevinster"]
[]
[null,null,2012,null,2013,null,2014,null,2015,null,2016]
[null,"Indhentet ekstraordinær effektiviseringsgevinst",0,"kr.",0,"kr.",null,"kr.",null,"kr.",null,"kr."]
[null,"Gevinst anvendt til investeringer",0,"kr.",0,"kr.",null,"kr.",null,"kr.",null,"kr."]
[null,"Gevinst anvendt til takstnedsættelse",0,"kr.",0,"kr.",null,"kr.",null,"kr.",null,"kr."]
[null,"Korrektion for  effektiviseringsgevinst der ikke er anvendt inden 4 år",0,"kr.",0,"kr.",null,"kr.",null,"kr.",{"$f":"IF(C38>SUM(E35:I36),C38-SUM(E35:I36),0)*-1","v":0},"kr."]
[null,"Resterende gevinst",{"$f":"C34-C35-C36","v":0},"kr.",{"$f":"C38+E34-E35-E36","v":0},"kr.",{"$f":"E38+G34-G35-G36","v":0},"kr.",0,"kr.",{"$f":"K34-K35-K36+K37+I38","v":0},"kr."]